Cogmind - Beta 15 @@@ ROGUE MODE // 2025.06.23 @ 10:26:29 Player: CL-1C0 Result: Destroyed by Y-54 Guardian with Gatling Laser Performance ------------- Evolutions (0) 0 Regions Visited (4) 800 Robots Destroyed (15) 75 Value Destroyed (453) 453 Prototype IDs (11) 220 Alien Tech Used (0) 0 Bonus (0) 0 TOTAL SCORE: 1548 Bonus ------- None Cogmind --------- Core Integrity 0/250 Matter 222/300 Energy 100/100 System Corruption 0% Temperature Cool (18) Movement Rolling (110) Location -7/Recycling Parts ------- > --- POWER (1) -------- (None) > --- PROPULSION (2) --- Subdweller Monowheel > --- UTILITY (2) ------ (None) > --- WEAPON (2) ------- Light Assault Rifle Light Assault Rifle > --- INVENTORY (5) ---- Meta Core Wheel Subdweller Optics Subdweller Optics Subdweller Laser Peak State ------------ > --- POWER ------------ Light Nuclear Core > --- PROPULSION ------- Light Treads Subdweller Monowheel > --- UTILITY ---------- Light Humpback > --- WEAPON ----------- Battle Rifle Barrage Gun > --- INVENTORY -------- Ion Engine Light Treads Wheel Wheel Subdweller Optics Hacking Suite Light Assault Rifle Light Assault Rifle SUBCON Basin [Rating: 32] Favorites ----------- Power Ion Engine Engine Ion Engine Power Core Light Nuclear Core Propulsion Light Treads Treads Light Treads Leg Aluminum Leg Wheel Subdweller Monowheel Utility Small Storage Unit Device Disposable Heat Sink Storage Small Storage Unit Protection Scrap Shield Weapon Assault Rifle Energy Gun Small Laser Ballistic Gun Assault Rifle Build | -11 -10 -10 -10 -7 ------- Run | Yrd Mat Min Sub Rec Slots Evolved . | . . . . . Power . | . . . . . Propulsion . | . . . . . Utility . | . . . . . Weapon . | . . . . . Parts Attached 17 | 2 1 1 13 . Power 2 | . 1 1 . . Engine 1 | . 1 . . . Core 1 | . . 1 . . Reactor . | . . . . . Propulsion 6 | 2 . . 4 . Treads 2 | 2 . . . . Leg . | . . . . . Wheel 4 | . . . 4 . Hover . | . . . . . Flight . | . . . . . Utility 4 | . . . 4 . Device 2 | . . . 2 . Storage 1 | . . . 1 . Processor . | . . . . . Hackware . | . . . . . Protection 1 | . . . 1 . Artifact . | . . . . . Weapon 5 | . . . 5 . Energy Gun 1 | . . . 1 . Energy Cannon . | . . . . . Ballistic Gun 4 | . . . 4 . Ballistic Cannon . | . . . . . Launcher . | . . . . . Special Weapon . | . . . . . Impact Weapon . | . . . . . Slashing Weapon . | . . . . . Piercing Weapon . | . . . . . Special Melee Weapon . | . . . . . Unidentified Prototypes . | . . . . . Parts Lost 9 | . . . 6 3 Power 2 | . . . 1 1 Propulsion 3 | . . . 2 1 Utility 2 | . . . 1 1 Weapon 2 | . . . 2 . Highest Loss Streak 3 | . . . 3 2 To Critical Strikes . | . . . . . Average Backups 6 | 6 5 8 6 7 Power . | 1 1 1 . . Propulsion 2 | 4 2 2 2 1 Utility 1 | . . 1 1 3 Weapon 2 | 1 1 4 2 1 Tool/Special . | . . . . . Unused Backups 16 | . 3 1 5 7 Power 2 | . . 1 . 1 Propulsion 1 | . . . . 1 Utility 6 | . 1 . 1 4 Weapon 6 | . 2 . 4 . Tool/Special 1 | . . . . 1 Average Slot Usage (%) 83 | . 84 85 83 71 Engine 6 | . 14 8 4 14 Core 6 | . . 5 7 . Treads 19 | . 27 28 16 . Wheel 7 | . . . 10 21 Storage 11 | . 14 14 10 7 Protection 1 | . . . 2 . Energy Gun 7 | . 14 14 4 . Ballistic Gun 20 | . 14 14 23 28 Peak Build Rating 32 | 6 7 9 32 30 Average Rating 13 | 5 6 7 16 18 On Entrance 11 | 6 6 7 9 30 Naked Turns . | . . . . . Heaviest Build 50 | 13 13 13 50 47 Greatest Support 40 | 40 40 40 40 20 Greatest Overweight (x) 4 | . . . 4 2 Average Overweight (x) . | . . . 1 1 Largest Inventory Capacity 25 | 8 8 8 25 25 Average Capacity 12 | 8 8 8 14 15 Most Carried 25 | 6 8 8 25 25 Average Carried 9 | 5 5 8 10 15 Final Capacity 25 | 8 8 8 25 5 Final Carried 25 | 4 8 8 25 5 Class Distribution -------------------- 91% | Mutant 5% | Subdweller-Mutant Dominant Class ---------------- Mutant | -10/Materials Mutant | -10/Mines Mutant | -10/Subcaves Mutant | -7/Recycling Resources | -11 -10 -10 -10 -7 ----------- Run | Yrd Mat Min Sub Rec Matter Collected 711 | 200 26 56 429 . Remotely . | . . . . . Salvage Created 519 | . 59 56 404 . Parts 32 | . 4 1 27 . Haulers Intercepted . | . . . . . Recyclers Shooed . | . . . . . Parts Field Recycled . | . . . . . Retrieved Matter . | . . . . . Parts Self-Destructed 20 | . . . 20 . Prevented . | . . . . . Kills | -11 -10 -10 -10 -7 ------- Run | Yrd Mat Min Sub Rec Combat Hostiles Destroyed 13 | . 1 1 11 . Guns 13 | . 1 1 11 . Classes Destroyed 6 | . 2 . 4 . Operator 1 | . 1 . . . Turret 1 | . . . 1 . Swarmer 4 | . . . 4 . Grunt 4 | . 1 1 2 . Sentry 1 | . . . 1 . Subdweller 4 | . . . 4 . Best Kill Streak 4 | . 1 1 4 . Combat Bots Only 4 | . 1 1 4 . Max Kills in Single Turn 1 | . 1 1 1 . Gunslinging . | . . . . . Exploded . | . . . . . Melee . | . . . . . Uniques/NPCs Destroyed . | . . . . . Combat | -11 -10 -10 -10 -7 -------- Run | Yrd Mat Min Sub Rec Hostile Shots Fired 224 | . 5 13 158 48 Missed 73 | . 1 3 53 16 Hits 151 | . 4 10 105 32 Projectile 151 | . 4 10 105 32 Critical Strikes 1 | . . 1 . . Damage Taken 1421 | . 45 100 1048 228 Core 252 | . . 33 177 42 Absorbed by Shields . | . . . . . Core Remaining (%) 100 | 100 . . . . Volleys Fired 85 | . 7 8 65 5 Largest 2 | . 2 2 2 2 Hottest 88 | . 60 60 88 40 Shots Fired 157 | . 14 16 117 10 Gun 157 | . 14 16 117 10 Cannon . | . . . . . Launcher . | . . . . . Special . | . . . . . Kinetic 130 | . 7 8 105 10 Thermal 27 | . 7 8 12 . Explosive . | . . . . . Electromagnetic . | . . . . . Robot Hit Streak 26 | . 2 4 26 7 Robot Miss Streak 3 | . 2 3 3 1 Penetration Max . | . . . . . Secondary Targets 2 | . . . 2 . Max Gunslinging Chain 1 | . . . 1 . Shots Hit Robots 86 | . 6 6 66 8 Core Hits 29 | . 3 3 21 2 Critical Kills 2 | . . . 2 . Critical Parts Destroyed 1 | . . . 1 . Critical Strikes 4 | . . . 4 . Destroy 4 | . . . 4 . Melee Attacks . | . . . . . Impact . | . . . . . Slashing . | . . . . . Piercing . | . . . . . Sneak Attacks . | . . . . . Combat Hostiles . | . . . . . Follow-up Attacks . | . . . . . Damage Inflicted 1192 | . 76 69 974 73 Guns 1192 | . 76 69 974 73 Cannons . | . . . . . Explosions . | . . . . . Melee . | . . . . . Ramming . | . . . . . Kinetic 1115 | . 65 47 930 73 Thermal 77 | . 11 22 44 . Explosive . | . . . . . Electromagnetic . | . . . . . Impact . | . . . . . Slashing . | . . . . . Piercing . | . . . . . Highest Corruption . | . . . . . Average Corruption . | . . . . . Corruption Purged . | . . . . . Corruption Blocked . | . . . . . Overload Shots . | . . . . . Overflow Damage . | . . . . . Projectiles . | . . . . . Explosions . | . . . . . Melee . | . . . . . Knockbacks . | . . . . . Impact . | . . . . . Kinetic . | . . . . . Secondary . | . . . . . Self-Inflicted Damage . | . . . . . Shots . | . . . . . Rammed . | . . . . . Targets Rammed . | . . . . . Kicked . | . . . . . Crushed . | . . . . . Highest Temperature 54 | . 18 54 16 12 Average Temperature 21 | . 15 44 6 11 Received Heat Transfer 549 | . 24 54 411 60 Siege Activations . | . . . . . Martial Activations . | . . . . . Shielding Activations . | . . . . . Robots Disrupted . | . . . . . Combat Hostiles . | . . . . . Robots Corrupted . | . . . . . Combat Hostiles . | . . . . . Parts Fried . | . . . . . Impact Corruptions . | . . . . . Robots Melted . | . . . . . Combat Hostiles . | . . . . . Parts Melted . | . . . . . Heat Transferred 175 | . 25 50 100 . Parts Sabotaged . | . . . . . Parts Stolen . | . . . . . Parts Stripped . | . . . . . Power Chain Reactions . | . . . . . Alert | -11 -10 -10 -10 -7 ------- Run | Yrd Mat Min Sub Rec Maximum Alert Level . | . . . . . Low Security (%) 100 | 100 100 100 . 100 Level 1 . | . . . . . Level 2 . | . . . . . Level 3 . | . . . . . Level 4 . | . . . . . Level 5 . | . . . . . High Security . | . . . . . Max Security . | . . . . . Peak Influence 90 | . 30 45 . 90 Initial 60 | . . 3 . 60 Average 11 | . 5 7 . 64 Influence Increases 475 | . 65 90 290 30 Destroy 0b10 Robot/C 200 | . 20 20 160 . Destroy 0b10 Robot/NC 5 | . 5 . . . Destroy Leader 30 | . 10 10 10 . Select Force Hacks 60 | . 30 . . 30 Lose Combat Pursuer 180 | . . 60 120 . Influence Decreases 445 | . 55 100 164 126 Entered New Map 73 | . . 7 . 66 Time Decay 292 | . 55 93 114 30 Lost Part 80 | . . . 50 30 Squads Dispatched 2 | . 2 . . . Investigation 1 | . 1 . . . Extermination . | . . . . . Reinforcement 1 | . 1 . . . Assault . | . . . . . Garrison . | . . . . . Intercept . | . . . . . Searches Triggered . | . . . . . Construction Impeded . | . . . . . Haulers Reinforced . | . . . . . Active Scanning Responses . | . . . . . Cargo Convoy Interrupts . | . . . . . Stealth | -11 -10 -10 -10 -7 --------- Run | Yrd Mat Min Sub Rec Distress Signals 1 | . . 1 . . Communications Jammed . | . . . . . Distress Signals . | . . . . . Times Spotted 32 | . 7 5 19 1 Peak Tracking Total 6 | . 3 3 6 1 Tactical Retreats 7 | . . 2 5 . Traps | -11 -10 -10 -10 -7 ------- Run | Yrd Mat Min Sub Rec Traps Triggered 2 | . 1 . 1 . Indirectly . | . . . . . Trap Hack Attempts . | . . . . . Triggered . | . . . . . Disarmed . | . . . . . Reprogrammed . | . . . . . Reused . | . . . . . Traps Extracted . | . . . . . Installed . | . . . . . Triggered . | . . . . . Machines | -11 -10 -10 -10 -7 ---------- Run | Yrd Mat Min Sub Rec Machines Disabled 2 | . . . 2 . Max in Single Turn 1 | . . . 1 . Machines Repaired . | . . . . . Machines Dismantled . | . . . . . Machines Sabotaged . | . . . . . Overloaded Fab Kills . | . . . . . Hacking | -11 -10 -10 -10 -7 --------- Run | Yrd Mat Min Sub Rec Machines Accessed 5 | . 1 . 3 1 Terminals . | . . . . . Fabricators . | . . . . . Repair Stations . | . . . . . Recycling Units 2 | . 1 . . 1 Scanalyzers . | . . . . . Garrison Access . | . . . . . Total Hacks 6 | . 1 . 3 2 Successful 5 | . 1 . 3 1 Failed 1 | . . . . 1 Catastrophic . | . . . . . Database Lockouts . | . . . . . Manual 3 | . 1 . . 2 Terminals . | . . . . . Fabricators . | . . . . . Repair Stations . | . . . . . Recycling Units 3 | . 1 . . 2 Scanalyzers . | . . . . . Garrison Access . | . . . . . Terminal Hacks 3 | . . . 3 . Open Door 1 | . . . 1 . Proto ID Catalog 1 | . . . 1 . Release Object 1 | . . . 1 . Fabricator Hacks . | . . . . . Repair Station Hacks . | . . . . . Recycling Unit Hacks . | . . . . . Scanalyzer . | . . . . . Garrison Access Hacks . | . . . . . Unauthorized Hacks 2 | . 1 . . 1 Terminals . | . . . . . Fabricators . | . . . . . Repair Stations . | . . . . . Recycling Units 2 | . 1 . . 1 Tunnel 2 | . 1 . . 1 Scanalyzers . | . . . . . Garrison Access . | . . . . . Data Cores Recovered . | . . . . . Used . | . . . . . Hacking Detections . | . . . . . Full Trace Events . | . . . . . Feedback Events . | . . . . . Feedback Blocked . | . . . . . Robot Schematics Acquired . | . . . . . Robots Built . | . . . . . Authchips . | . . . . . Time . | . . . . . Total Robot Build Rating . | . . . . . Part Schematics Acquired . | . . . . . Parts Built . | . . . . . Authchips . | . . . . . Time . | . . . . . Total Part Build Rating . | . . . . . Parts Repaired . | . . . . . Time . | . . . . . Parts Recycled . | . . . . . Recycled Matter . | . . . . . Retrieved Matter . | . . . . . Retrieved Components . | . . . . . Parts Scanalyzed . | . . . . . Part Schematics Acquired . | . . . . . Parts Damaged . | . . . . . Bothacking | -11 -10 -10 -10 -7 ------------ Run | Yrd Mat Min Sub Rec Used RIF Installer . | . . . . . Robots Hacked . | . . . . . Non-combat . | . . . . . Combat . | . . . . . Robot Hacks Applied . | . . . . . Relay Couplers Released . | . . . . . Fabnet Peak Effective % . | . . . . . Robots Rewired . | . . . . . Allies Hacked . | . . . . . Hacks Repelled . | . . . . . Allies | -11 -10 -10 -10 -7 -------- Run | Yrd Mat Min Sub Rec Total Allies . | . . . . . Largest Group . | . . . . . Highest-Rated Group . | . . . . . Highest-Rated Ally . | . . . . . Total Orders . | . . . . . Ally Attacks . | . . . . . Total Damage . | . . . . . Kills . | . . . . . Allies Corrupted . | . . . . . Allies Melted . | . . . . . Intel | -11 -10 -10 -10 -7 ------- Run | Yrd Mat Min Sub Rec Active Infowar (turns) 78 | . . . 78 . Optics 78 | . . . 78 . Robot Analysis Total . | . . . . . Derelict Logs Recovered 2 | . . 2 . . Drone Launches . | . . . . . Drone Recoveries . | . . . . . Exploration | -11 -10 -10 -10 -7 ------------- Run | Yrd Mat Min Sub Rec Turns Passed 2352 | 3 275 477 1523 74 Spaces Moved 1358 | 1 155 224 945 33 Core 1 | . . . 1 . Treads 608 | 1 155 224 228 . Legs . | . . . . . Wheels 749 | . . . 716 33 Hover . | . . . . . Flight . | . . . . . Fastest Speed 110 | 160 160 160 110 110 Average Speed 141 | 160 160 160 133 126 Slowest Speed 160 | 160 160 160 160 130 Overloaded Moves . | . . . . . Propulsion Burnouts . | . . . . . Robots Hopped . | . . . . . Potential Cave-ins . | . . . . . Cave-ins Triggered . | . . . . . Exploration Rate (%) 32 | 2 29 59 45 26 Regions Visited 4 Branch Regions 3 Pre-discovered Areas 3 | . 1 1 . 1 Known Exits Taken . | . . . . . Unknown Exits Taken 4 | 1 1 1 1 . Scrap Searched 2 | . . . 2 . Spaces Dug . | . . . . . Terrain Destroyed . | . . . . . Melee . | . . . . . Projectile . | . . . . . AOE . | . . . . . Terrain Rammed . | . . . . . Walls Destroyed . | . . . . . Machines Disabled . | . . . . . Actions | -11 -10 -10 -10 -7 --------- Run | Yrd Mat Min Sub Rec Total 1651 | 4 167 327 1096 57 Wait 145 | . . 94 32 19 Move 1354 | . 154 223 944 33 Hop . | . . . . . Pick Up 23 | . 4 . 19 . Fast Attach 14 | . 2 . 12 . Attach 6 | 2 . . 4 . Detach 1 | . . . 1 . Swap 3 | . . 1 2 . Drop 18 | 2 . 1 15 . Fire 85 | . 7 8 65 5 Melee . | . . . . . Ram . | . . . . . Kick . | . . . . . Crush . | . . . . . Escape Stasis . | . . . . . Rewire . | . . . . . Trap . | . . . . . Miscellaneous 2 | . . . 2 . Route ------- -11/Scrapyard -10/Materials (discovered 2 exits: [*Mat] / [*Min]) -10/Mines (discovered 2 exits: [*Mat] / *Sub) -10/Subcaves (discovered 2 exits: [*Mat] / *Rec) -7/Recycling History --------- Turn | Location | Event 4 | -11/Scrapyard | Discovered new exit (range 0) 4 | -11/Scrapyard | Entered Materials 91 | -10/Materials | Discovered new exit (range 12) 188 | -10/Materials | Discovered new exit (range 7) 279 | -10/Materials | Entered Mines 300 | -10/Mines | Learned 4 Materials zone layouts 301 | -10/Mines | Build established: Mutant 400 | -10/Mines | Excavation squad dispatched 400 | -10/Mines | A large section of the Mines collapsed 605 | -10/Mines | Discovered new exit (range 9) 608 | -10/Mines | Learned location of Zion (-7) 740 | -10/Mines | Discovered new exit (range 5) 756 | -10/Mines | Entered Subcaves 983 | -10/Subcaves | Discovered new exit (range 7) 1171 | -10/Subcaves | Shifting Twisted Machinery released Battle Rifle 1183 | -10/Subcaves | Shifting Twisted Machinery released Lgt. Humpback 1487 | -10/Subcaves | Found SUBCON Basin 1595 | -10/Subcaves | Disturbed a concealed Subdweller 1901 | -10/Subcaves | Visited 4L-MR0's lab 1919 | -10/Subcaves | Found Prototype Power Core 1922 | -10/Subcaves | Identified Meta Core 2098 | -10/Subcaves | Discovered new exit (range 13) 2141 | -10/Subcaves | Core integrity fell below 50% 2161 | -10/Subcaves | Core integrity fell below 20% 2185 | -10/Subcaves | Lost 3 parts (2n1w) 2279 | -10/Subcaves | Entered Recycling 2353 | -7/Recycling | Destroyed by Y-54 Guardian with Gatling Laser Last Messages --------------- 02226_ Acquired Broken Sub. Laser. 02237_ Acquired Disposable Heat Sink. 02239_ Acquired Sub. Optics. 02243_ Acquired Sub. Power Source. 02261_ Acquired Disposable Heat Sink. 02275_ Acquired 25 matter. LOCATION=UNKNOWN GOAL=ESCAPE 02283_ Connecting with Recycling Unit... 02283_ Current location identified: Recycling >>Force(Tunnel) DISCOVERED[-6/Factory] 02314_ Y-54 Guardian springs to life. 02316_ Lgt. Humpback destroyed. 02318_ R-06 Scavenger collects Disposable Heat Sink. 02319_ Broken Sub. Monowheel destroyed. 02322_ R-06 Scavenger collects Disposable Heat Sink. 02322_ R-06 Scavenger collects Hacking Suite. 02322_ R-06 Scavenger collects Sub. Power Source. 02353_ Ion Engine destroyed. Map ----- +----------------------------------------------------+ | ?????????????????????????????????????????????????? | | ?????????????????????????????????????????????????? | | ?????????????????????????????????????????????????? | | ?????????????????????????????????????????????????? | | ?????????????????????????????????????????????????? | | ?????????????????????????????????????????????????? | | ?????????????????????????????????????????????????? | | ?????????????????????????????????????????????????? | | ?????????????????????????????????????????????????? | | ?????????????????????????????????????????????????? | | ????????????????????? ?????????????????????????? | | ????????????????????# ?????????????????????????? | | ????????????????????# ?????????????????????????? | | ????????????????????# ?????????????????????????? | | ????????????????????# ?????????????????????????? | | ????????????????????# ?########????????????????? | | ????????????????????# ?! ! #????????????????? | | ????????????????????# # #????????????????? | | ????????????????????# # !! #????????????????? | | ??????????#+###+##### # #????????????????? | | ??????????# # !#????????????????? | | ?????????## # ! #????????????????? | | ????????? # !#????????????????? | | ??????????# r# ! #????????????????? | | ??????????# Y! #????????????????? | | ??????????# #@ ! #????????????????? | | ??????????# # ! #????????????????? | | ??????????# #########?????######?????? | | ??????????# #???????????? #?????? | | ?????????# &###########??"" #?????? | | ?????????## & #?"T" #?????? | | ??????????# #? #?????? | | ??????????# # ??????? | | ??????????##### """ """ """ # """ #?????? | | ??????????????# """ """ """ + """ #?????? | | ??????????????# """ """ """ # """ #?????? | | ??????????????# # ??????? | | ???????????????? #?########?????? | | ??????????????? """ """ """ ###?#"""#??????? | | ??????????????? """ """ """ # ###"Y"####???? | | ???????????????????" ?""" """ #???? | | ??????????????????? ?? #???? | | ??????????????????? #???? | | ???????????????????? #???? | | ???????????????????? #???? | | ????????????????????############+#############???? | | ?????????????????????????????????????????????????? | | ?????????????????????????????????????????????????? | | ?????????????????????????????????????????????????? | | ?????????????????????????????????????????????????? | +----------------------------------------------------+ Best States ------------- Heat Dissipation 25 Coolant Potential 50 Energy Generation 14 Energy Capacity 250 Matter Stores 300 Matter Capacity 300 Sight Range 21 Terrain Scan Density 10 Armor Coverage 800 Evasion (%) 40 Recoil Reduction 2 Item Schematics ----------------- None Robot Schematics ------------------ None Fabricated ------------ Nothing Repaired ---------- Nothing Alien Tech Used ----------------- None Achievements -------------- None Challenges ------------ None Game ------ Seed ExpertLongswordDeflector Manual? 0 Play Time 00:14:22 Cumulative 557.0 hours Start 2025.06.23 @ 10:07:36 End 2025.06.23 @ 10:26:29 Sessions 1 Manual Loads 0 Difficulty Rogue Special Mode None Game No. 670 Rogue 670 Adventurer 0 Explorer 0 Win Type - Total 20 Types 14/0/5/1/0/0/0/0/0/0 Lore% 85 Gallery% 83 Achievement% 83 Wizard Run 0 Options --------- Layout 0 ASCII 0 Keyboard 0 Movement Numpad Keybinds 0 Fullscreen 1 Font 18/SmallcapsGlow Map View 76x50 Zoom Use 0% Tactical HUD 1 Map Filters NONE Filters NONE Steam 1 RUN: 183c55c0-c02e-47fd-9e7a-5aaca937d7dd